{"text_format":"1","workbook":"xlsx","n_sheets":14,"sheets":["Cover","Info","Results","E01","E02","E03","E04","E05","E06","E07","E08","E09","E10","About"],"not_rendered":{"charts":11,"images":39,"macros":1,"external_links":0,"defined_names":15,"comments":0,"pivot_tables":0},"unopened":[],"bounds":{"document_bytes":16777216,"sheet_cells":100000,"rows_first":2000,"rows_last":500,"rows_between":2000,"halvings":0,"cell_chars":16384,"cell_head_chars":4096},"cells_cut":0,"cells_raw":0,"read":"whole","date_system":"1900"}

{"sheet":"Cover","index":0,"n_rows":0,"n_cols":0,"rows_kept":0,"cut":false,"hidden":false,"merged":[]}

{"sheet":"Info","index":1,"n_rows":39,"n_cols":4,"rows_kept":39,"cut":false,"hidden":false,"merged":[[0,0,0,16383],[38,1,38,3],[39,1,39,3],[2,1,2,2],[3,1,3,2],[4,1,4,2],[5,1,5,2],[6,1,6,2],[37,1,37,3],[31,1,31,2],[32,1,32,2],[33,1,33,2],[34,1,34,2],[35,1,35,2]]}
[]
[]
[null,"Avalição",null,"Resposta"]
[null,"Nome da cidade:"]
[null,"Tipo de cidade (município, áreas metropolitanas, etc.):"]
[null,"País:"]
[null,"Data de avalição:"]
[]
[null,"Perfil da cidade (necessário)","Resposta","Data da fonte"]
[null,"Título do mais alto nível de autoridade (por exemplo, prefeito, etc)"]
[null,"População total:"]
[null,"Quilômetros quadrados:"]
[null,"Densidade populacional (por quilômetros quadrados):"]
[null,"População jovem (15-24) (%):"]
[null,"População idosa (65+) (%):"]
[null,"Gênero (agregados familiares chefiados por mulheres):"]
[null,"Taxa de alfabetização (% da população alfabetizada):"]
[null,"Taxa de pobreza (% da população que não está na pobreza)"]
[null,"Rendimento médio do agregado familiar (BRL):"]
[null,"Residentes que não são cidadãos (%):"]
[null,"Risco de desastre mais provável:"]
[null,"Desastres mais graves (conhecidos):"]
[]
[null,"Perfil da cidade (opcional)","Resposta","Data da fonte"]
[null,"Número total de agregados familiares:"]
[null,"Pessoas por unidade:"]
[null,"Custo de vida (BRL):"]
[null,"Produto Interno Bruto do País per capita (BRL):"]
[null,"Coeficiente de Gini:"]
[null,"Produto da cidade per capita (BRL):"]
[]
[null,"Equipe do Governo Local para Resiliência e Redução de Riscos de Desastres",null,"Resposta"]
[null,"Nome da pessoa que lidera/ coordena a conclusão de avaliação da Ferramenta de Auto-Avaliação:"]
[null,"Organização:"]
[null,"Detalhes de contato:"]
[null,"Vontade de partilhar os resultados ou ser usado como um exemplo/ caso de estudo pela UNDRR e sócios:"]
[]
[null,"Informação dos atores"]
[null,"Por favor, liste todos os atores que apoiaram esta avaliação abaixo."]

{"sheet":"Results","index":2,"n_rows":152,"n_cols":13,"rows_kept":152,"cut":false,"hidden":false,"merged":[[113,1,113,3],[96,2,96,5],[104,2,104,5],[105,2,105,5],[99,2,99,5],[111,1,111,2],[34,2,34,5],[89,2,89,5],[90,2,90,5],[91,2,91,5],[41,2,41,5],[42,2,42,5],[43,2,43,5],[52,2,52,5],[59,2,59,5],[65,2,65,5],[57,3,57,6],[39,3,39,6],[63,3,63,6],[69,3,69,6],[77,3,77,6],[73,2,73,5],[71,2,71,5],[72,2,72,5],[74,2,74,5],[94,3,94,5],[102,3,102,6],[97,2,97,5],[98,2,98,5],[79,2,79,5],[80,2,80,5],[81,2,81,5]]}
[]
[]
[]
[]
[]
[]
[]
[]
[]
[]
[]
[]
[]
[]
[]
[]
[]
[]
[]
[]
[]
[]
[]
[]
[]
[]
[]
[]
[]
[]
[]
[]
[null,"Princípio 01: ",null,{"$f":"D118","v":"Organizar para a resiliência a desastres - Integração de saúde pública e governança"}]
[]
[null,{"$f":"C130","v":"P1.1"},{"$f":"E130","v":"O setor de saúde faz parte da governança multissetorial de gestão de risco de desastres"},null,null,null,{"$f":"F130","v":0}]
[]
[]
[]
[]
[null,"Princípio 02: ",null,{"$f":"D119","v":"Identificar, compreender e usar cenários de riscos atuais e futuros - Integração de cenários de saúde pública e desastres"}]
[]
[null,{"$f":"C131","v":"P2.1"},{"$f":"E131","v":"Inclusão de uma série de emergências e desastres como um cenário de desastre por si só (por exemplo, surtos de doenças / pandemias, fome, escassez de água, etc.) "},null,null,null,{"$f":"F131","v":0}]
[null,{"$f":"C132","v":"P2.2"},{"$f":"E132","v":"Inclusão dos impactos previsíveis na saúde pública em outros cenários de risco de desastre (por exemplo, inundações, eventos de calor, escorregamentos)"},null,null,null,{"$f":"F132","v":0}]
[null,{"$f":"C133","v":"P2.3"},{"$f":"E133","v":"Inclusão no planejamento de desastres de condições crônicas de saúde pré-existentes, incluindo doenças não transmissíveis"},null,null,null,{"$f":"F133","v":0}]
[]
[]
[]
[]
[]
[]
[null,"Princípio 03:",null,{"$f":"D120","v":"Fortalecer a capacidade financeira para a resiliência - Integração de saúde pública e finanças"}]
[]
[null,{"$f":"C134","v":"P3.1"},{"$f":"E134","v":"Financiamento para aspectos de resiliência de saúde pública"},null,null,null,{"$f":"F134","v":0}]
[]
[]
[]
[]
[null,"Princípio 04:",null,{"$f":"D121","v":"Buscar projeto e desenvolvimento urbano resiliente - Integração da necessidade de saúde pública ao código do uso do solo/ construção"}]
[]
[null,{"$f":"C135","v":"P4.1"},{"$f":"E135","v":"Conformidade das principais unidades de saúde com o zoneamento de terras resilientes e códigos de construção"},null,null,null,{"$f":"F135","v":0}]
[]
[]
[]
[null,"Princípio 05:",null,{"$f":"D122","v":"Proteger as zonas naturais para melhorar as funções de protetoras oferecidas pelos ecossistemas - Gestão de serviços de ecossistemas que afetam a saúde pública"}]
[]
[null,{"$f":"C136","v":"P5.1"},{"$f":"E136","v":"Preservação e gestão de serviços de ecossistemas que fornecem benefícios de saúde pública"},null,null,null,{"$f":"F136","v":0}]
[]
[]
[]
[null,"Princípio 06:",null,{"$f":"D123","v":"Fortalecer a capacidade institucional para a resiliência - Integração da saúde pública e capacidade institucional "}]
[]
[null,{"$f":"C137","v":"P6.1"},{"$f":"E137","v":"Disponibilidade da força de trabalho de saúde pública com competências e habilidades relevantes para resiliência a desastres"},null,null,null,{"$f":"F137","v":0}]
[null,{"$f":"C138","v":"P6.2"},{"$f":"E138","v":"Compartilhamento de dados do sistema público de saúde com outras partes interessadas"},null,null,null,{"$f":"F138","v":0}]
[null,{"$f":"C139","v":"P6.2.1"},{"$f":"E139","v":"Compartilhamento de outros dados com as partes interessadas do sistema de saúde pública"},null,null,null,{"$f":"F139","v":0}]
[null,{"$f":"C140","v":"P6.2.2"},{"$f":"E140","v":"Proteção e acesso a registros de saúde individuais"},null,null,null,{"$f":"F140","v":0}]
[]
[]
[null,"Princípio 07: ",null,{"$f":"D124","v":"Compreender e fortalecer a capacidade societal para resiliência - Integração da saúde pública e capacidade social"}]
[]
[null,{"$f":"C141","v":"P7.1"},{"$f":"E141","v":"Eficácia do sistema de saúde pública no envolvimento da comunidade no contexto da gestão do risco de desastres"},null,null,null,{"$f":"F141","v":0}]
[null,{"$f":"C142","v":"P7.1.2"},{"$f":"E142","v":"Acesso da comunidade e confiança nas informações de saúde pública"},null,null,null,{"$f":"F142","v":0}]
[null,{"$f":"C143","v":"P7.2"},{"$f":"E143","v":"Capacidade da comunidade de \"retornar à normalidade\" - saúde mental"},null,null,null,{"$f":"F143","v":0}]
[]
[]
[]
[]
[]
[null,"Princípio 08:",null,{"$f":"D125","v":"Aumentar a resiliência das infraestruturas - Integração de saúde pública e resiliência de infraestrutura "}]
[]
[null,{"$f":"C144","v":"P8.1"},{"$f":"E144","v":"Fortalecimento da segurança estrutural e não estrutural e funcionalidade dos itens de infraestrutura de saúde pública não considerados no Princípio 8"},null,null,null,{"$f":"F144","v":0}]
[null,{"$f":"C145","v":"P8.2"},{"$f":"E145","v":"Capacidade da infraestrutura de saúde pública, em caso de surto (quando não considerada no Princípio 8)"},null,null,null,{"$f":"F145","v":0}]
[null,{"$f":"C146","v":"P8.3"},{"$f":"E146","v":"Continuidade de cuidados para aqueles que já estão doentes, quando não considerados no Princípio 8"},null,null,null,{"$f":"F146","v":0}]
[]
[]
[null,"Princípio 09:",null,{"$f":"D126","v":"Garantir a preparação e a resposta eficaz aos desastres - Integração da saúde pública e resposta a desastres"}]
[]
[null,{"$f":"C147","v":"P9.1"},{"$f":"E147","v":"Sistemas de alerta precoce para emergências relacionadas à saúde"},null,null,null,{"$f":"F147","v":0}]
[null,{"$f":"C148","v":"P9.2"},{"$f":"E148","v":"Integração da saúde pública com gerenciamento de emergência em desastres"},null,null,null,{"$f":"F148","v":0}]
[null,{"$f":"C149","v":"P9.3"},{"$f":"E149","v":"Reconhecimento de populações de alto risco ou aqueles que vivem em casa com condições de saúde pré-existentes"},null,null,null,{"$f":"F149","v":0}]
[null,{"$f":"C150","v":"P9.4"},{"$f":"E150","v":"Capacidade de fornecer suprimentos de saúde pública para pessoas em necessidade"},null,null,null,{"$f":"F150","v":0}]
[]
[]
[null,"Princípio 10: ",null,{"$f":"D127","v":"Acelerar a recuperação e reconstruir melhor - Integração da saúde pública e recuperação/ reconstrução melhor"}]
[]
[null,{"$f":"C151","v":"P10.1"},{"$f":"E151","v":"Mitigação de impactos de longo prazo na saúde pública e bem-estar"},null,null,null,{"$f":"F151","v":0}]
[null,{"$f":"C152","v":"P10.2"},{"$f":"E152","v":"Aprendendo e melhorando"},null,null,null,{"$f":"F152","v":0}]
[]
[]
[]
[]
[]
[null,{"$f":"TODAY()","v":"2021-04-08"},null,null,null,null,null,{"$f":"Info!$B$4","v":"Nome da cidade:"},{"$f":"Info!$D$4","v":0},null,{"$f":"Info!$B$6","v":"País:"},{"$f":"Info!$D$6","v":0}]
[]
[]
[]
[]
[null,null,"Label","Name",null,"Essential","TotalScore","MaxScore","Label"]
[null,null,"S1","Organizar para a resiliência a desastres - Integração de saúde pública e governança",null,"P1",{"$f":"SUMIFS($F$130:$F$189,$B$130:$B$189,F118)","v":0},{"$f":"COUNTIFS($B$130:$B$152,F118)*5","v":5},"01",null,{"$f":"SUM(G118:G127)","v":0},{"$f":"K118/K119","v":0},{"$f":"CONCATENATE(\"A pontuação geral para esta avaliação é \",SUM(G118:G127),\" / \",SUM(H118:H127))","v":"A pontuação geral para esta avaliação é 0 / 115"}]
[null,null,"S2","Identificar, compreender e usar cenários de riscos atuais e futuros - Integração de cenários de saúde pública e desastres",null,"P2",{"$f":"SUMIFS($F$130:$F$1010,$B$130:$B$1010,F119)","v":0},15,"02",null,{"$f":"SUM(H118:H127)","v":115},{"$f":"1-L118","v":1}]
[null,null,"S3","Fortalecer a capacidade financeira para a resiliência - Integração de saúde pública e finanças",null,"P3",0,5,"03"]
[null,null,"S4","Buscar projeto e desenvolvimento urbano resiliente - Integração da necessidade de saúde pública ao código do uso do solo/ construção",null,"P4",0,5,"04"]
[null,null,"S5","Proteger as zonas naturais para melhorar as funções de protetoras oferecidas pelos ecossistemas - Gestão de serviços de ecossistemas que afetam a saúde pública",null,"P5",0,5,"05"]
[null,null,"S6","Fortalecer a capacidade institucional para a resiliência - Integração da saúde pública e capacidade institucional ",null,"P6",0,20,"06"]
[null,null,"S7","Compreender e fortalecer a capacidade societal para resiliência - Integração da saúde pública e capacidade social",null,"P7",0,15,"07"]
[null,null,"S8","Aumentar a resiliência das infraestruturas - Integração de saúde pública e resiliência de infraestrutura ",null,"P8",0,15,"08"]
[null,null,"S9","Garantir a preparação e a resposta eficaz aos desastres - Integração da saúde pública e resposta a desastres",null,"P9",0,20,"09"]
[null,null,"S10","Acelerar a recuperação e reconstruir melhor - Integração da saúde pública e recuperação/ reconstrução melhor",null,"P10",0,10,"10"]
[]
[null,"Section","Ref",null,"Question","SelectedScore","ThisScore"]
[null,"P1",{"$f":"'E01'!$G$5","v":"P1.1"},null,{"$f":"'E01'!I5","v":"O setor de saúde faz parte da governança multissetorial de gestão de risco de desastres"},{"$f":"IF(G130=\"\",0,IF(G130=0,0,6-G130))","v":0},{"$f":"OFFSET('E01'!$E$1,MATCH(C130,'E01'!G:G,0)+3,0)","v":0}]
[null,"P2",{"$f":"'E02'!$G$5","v":"P2.1"},null,{"$f":"'E02'!I5","v":"Inclusão de uma série de emergências e desastres como um cenário de desastre por si só (por exemplo, surtos de doenças / pandemias, fome, escassez de água, etc.) "},{"$f":"IF(G131=\"\",0,IF(G131=0,0,6-G131))","v":0},{"$f":"OFFSET('E02'!$E$1,MATCH(C131,'E02'!G:G,0)+3,0)","v":0}]
[null,"P2",{"$f":"'E02'!$G$18","v":"P2.2"},null,{"$f":"'E02'!$I$18","v":"Inclusão dos impactos previsíveis na saúde pública em outros cenários de risco de desastre (por exemplo, inundações, eventos de calor, escorregamentos)"},0,{"$f":"OFFSET('E02'!$E$1,MATCH(C132,'E02'!G:G,0)+3,0)","v":0}]
[null,"P2",{"$f":"'E02'!$G$31","v":"P2.3"},null,{"$f":"'E02'!$I$31","v":"Inclusão no planejamento de desastres de condições crônicas de saúde pré-existentes, incluindo doenças não transmissíveis"},0,{"$f":"OFFSET('E02'!$E$1,MATCH(C133,'E02'!G:G,0)+3,0)","v":0}]
[null,"P3",{"$f":"'E03'!$G$5","v":"P3.1"},null,{"$f":"'E03'!$I$5","v":"Financiamento para aspectos de resiliência de saúde pública"},0,{"$f":"OFFSET('E03'!$E$1,MATCH(C134,'E03'!G:G,0)+3,0)","v":0}]
[null,"P4",{"$f":"'E04'!$G$5","v":"P4.1"},null,{"$f":"'E04'!$I$5","v":"Conformidade das principais unidades de saúde com o zoneamento de terras resilientes e códigos de construção"},0,{"$f":"OFFSET('E04'!$E$1,MATCH(C135,'E04'!G:G,0)+3,0)","v":0}]
[null,"P5",{"$f":"'E05'!$G$5","v":"P5.1"},null,{"$f":"'E05'!$I$5","v":"Preservação e gestão de serviços de ecossistemas que fornecem benefícios de saúde pública"},0,{"$f":"OFFSET('E05'!$E$1,MATCH(C136,'E05'!G:G,0)+3,0)","v":0}]
[null,"P6",{"$f":"'E06'!$G$5","v":"P6.1"},null,{"$f":"'E06'!$I$5","v":"Disponibilidade da força de trabalho de saúde pública com competências e habilidades relevantes para resiliência a desastres"},0,{"$f":"OFFSET('E06'!$E$1,MATCH(C137,'E06'!G:G,0)+3,0)","v":0}]
[null,"P6",{"$f":"'E06'!$G$18","v":"P6.2"},null,{"$f":"'E06'!$I$18","v":"Compartilhamento de dados do sistema público de saúde com outras partes interessadas"},0,{"$f":"OFFSET('E06'!$E$1,MATCH(C138,'E06'!G:G,0)+3,0)","v":0}]
[null,"P6",{"$f":"'E06'!$G$31","v":"P6.2.1"},null,{"$f":"'E06'!$I$31","v":"Compartilhamento de outros dados com as partes interessadas do sistema de saúde pública"},0,{"$f":"OFFSET('E06'!$E$1,MATCH(C139,'E06'!G:G,0)+3,0)","v":0}]
[null,"P6",{"$f":"'E06'!$G$44","v":"P6.2.2"},null,{"$f":"'E06'!$I$44","v":"Proteção e acesso a registros de saúde individuais"},0,{"$f":"OFFSET('E06'!$E$1,MATCH(C140,'E06'!G:G,0)+3,0)","v":0}]
[null,"P7",{"$f":"'E07'!$G$5","v":"P7.1"},null,{"$f":"'E07'!$I$5","v":"Eficácia do sistema de saúde pública no envolvimento da comunidade no contexto da gestão do risco de desastres"},0,{"$f":"OFFSET('E07'!$E$1,MATCH(C141,'E07'!G:G,0)+3,0)","v":0}]
[null,"P7",{"$f":"'E07'!$G$18","v":"P7.1.2"},null,{"$f":"'E07'!$I$18","v":"Acesso da comunidade e confiança nas informações de saúde pública"},0,{"$f":"OFFSET('E07'!$E$1,MATCH(C142,'E07'!G:G,0)+3,0)","v":0}]
[null,"P7",{"$f":"'E07'!$G$31","v":"P7.2"},null,{"$f":"'E07'!$I$31","v":"Capacidade da comunidade de \"retornar à normalidade\" - saúde mental"},0,{"$f":"OFFSET('E07'!$E$1,MATCH(C143,'E07'!G:G,0)+3,0)","v":0}]
[null,"P8",{"$f":"'E08'!$G$5","v":"P8.1"},null,{"$f":"'E08'!$I$5","v":"Fortalecimento da segurança estrutural e não estrutural e funcionalidade dos itens de infraestrutura de saúde pública não considerados no Princípio 8"},0,{"$f":"OFFSET('E08'!$E$1,MATCH(C144,'E08'!G:G,0)+3,0)","v":0}]
[null,"P8",{"$f":"'E08'!$G$18","v":"P8.2"},null,{"$f":"'E08'!$I$18","v":"Capacidade da infraestrutura de saúde pública, em caso de surto (quando não considerada no Princípio 8)"},{"$f":"IF(G145=\"\",0,IF(G145=0,0,6-G145))","v":0},{"$f":"OFFSET('E08'!$E$1,MATCH(C145,'E08'!G:G,0)+3,0)","v":0}]
[null,"P8",{"$f":"'E08'!$G$31","v":"P8.3"},null,{"$f":"'E08'!$I$31","v":"Continuidade de cuidados para aqueles que já estão doentes, quando não considerados no Princípio 8"},0,{"$f":"OFFSET('E08'!$E$1,MATCH(C146,'E08'!G:G,0)+3,0)","v":0}]
[null,"P9",{"$f":"'E09'!$G$5","v":"P9.1"},null,{"$f":"'E09'!$I$5","v":"Sistemas de alerta precoce para emergências relacionadas à saúde"},0,{"$f":"OFFSET('E09'!$E$1,MATCH(C147,'E09'!G:G,0)+3,0)","v":0}]
[null,"P9",{"$f":"'E09'!$G$18","v":"P9.2"},null,{"$f":"'E09'!$I$18","v":"Integração da saúde pública com gerenciamento de emergência em desastres"},0,{"$f":"OFFSET('E09'!$E$1,MATCH(C148,'E09'!G:G,0)+3,0)","v":0}]
[null,"P9",{"$f":"'E09'!$G$31","v":"P9.3"},null,{"$f":"'E09'!$I$31","v":"Reconhecimento de populações de alto risco ou aqueles que vivem em casa com condições de saúde pré-existentes"},0,{"$f":"OFFSET('E09'!$E$1,MATCH(C149,'E09'!G:G,0)+3,0)","v":0}]
[null,"P9",{"$f":"'E09'!$G$44","v":"P9.4"},null,{"$f":"'E09'!$I$44","v":"Capacidade de fornecer suprimentos de saúde pública para pessoas em necessidade"},0,{"$f":"OFFSET('E09'!$E$1,MATCH(C150,'E09'!G:G,0)+3,0)","v":0}]
[null,"P10",{"$f":"'E10'!$G$5","v":"P10.1"},null,{"$f":"'E10'!$I$5","v":"Mitigação de impactos de longo prazo na saúde pública e bem-estar"},0,{"$f":"OFFSET('E10'!$E$1,MATCH(C151,'E10'!G:G,0)+3,0)","v":0}]
[null,"P10",{"$f":"'E10'!$G$18","v":"P10.2"},null,{"$f":"'E10'!$I$18","v":"Aprendendo e melhorando"},0,{"$f":"OFFSET('E10'!$E$1,MATCH(C152,'E10'!G:G,0)+3,0)","v":0}]

{"sheet":"E01","index":3,"n_rows":15,"n_cols":9,"rows_kept":15,"cut":false,"hidden":false,"merged":[[7,2,7,3],[8,2,13,3],[5,2,5,3],[6,2,6,3]]}
[]
[]
[null,"P1 Integração de saúde pública e governança (Princípio 1)",null,null,null,null,"P.1",null,"Integração de saúde pública e governança (Princípio 1)"]
[]
[null,"P.1.1 O setor de saúde faz parte da governança multissetorial de gestão de risco de desastres",null,null,null,null,"P1.1",null,"O setor de saúde faz parte da governança multissetorial de gestão de risco de desastres"]
[null,"Questão","Comentários"]
[]
[null,"Resposta","Fornecer meios de verificação (explicação e evidência)"]
[null,null,null,null,null,{"$f":"IF(E9=1,TRUE,FALSE)","v":false}]
[null,null,null,null,null,{"$f":"IF(E9=2,TRUE,FALSE)","v":false}]
[null,null,null,null,null,{"$f":"IF(E9=3,TRUE,FALSE)","v":false}]
[null,null,null,null,null,{"$f":"IF(E9=4,TRUE,FALSE)","v":false}]
[null,null,null,null,null,{"$f":"IF(E9=5,TRUE,FALSE)","v":false}]
[null,null,null,null,null,{"$f":"IF(E9=6,TRUE,FALSE)","v":false}]
[null,"Ações para alcançar a resiliência máxima","Instituição/Setor (ou sub-setor) responsável","Prazo"]

{"sheet":"E02","index":4,"n_rows":41,"n_cols":9,"rows_kept":41,"cut":false,"hidden":false,"merged":[[5,2,5,3],[6,2,6,3],[7,2,7,3],[18,2,18,3],[19,2,19,3],[20,2,20,3],[8,2,13,3],[21,2,26,3],[34,2,39,3],[31,2,31,3],[32,2,32,3],[33,2,33,3]]}
[]
[]
[null,"P.2 Integração de cenários de saúde pública e desastres (Princípio 2)",null,null,null,null,"P.2",null,"Integration of public health and disaster scenarios (Essential 2)"]
[]
[null,"P2.1 Inclusão de uma série de emergências e desastres como um cenário de desastre por si só (por exemplo, surtos de doenças / pandemias, fome, escassez de água, etc.)  ",null,null,null,null,"P2.1",null,"Inclusão de uma série de emergências e desastres como um cenário de desastre por si só (por exemplo, surtos de doenças / pandemias, fome, escassez de água, etc.) "]
[null,"Questão","Comentários"]
[]
[null,"Resposta","Fornecer meios de verificação (explicação e evidência)"]
[null,null,null,null,null,{"$f":"IF(E9=1,TRUE,FALSE)","v":false}]
[null,null,null,null,null,{"$f":"IF(E9=2,TRUE,FALSE)","v":false}]
[null,null,null,null,null,{"$f":"IF(E9=3,TRUE,FALSE)","v":false}]
[null,null,null,null,null,{"$f":"IF(E9=4,TRUE,FALSE)","v":false}]
[null,null,null,null,null,{"$f":"IF(E9=5,TRUE,FALSE)","v":false}]
[null,null,null,null,null,{"$f":"IF(E9=6,TRUE,FALSE)","v":false}]
[null,"Ações para alcançar a resiliência máxima","Instituição/Setor (ou sub-setor) responsável","Prazo"]
[]
[]
[null,"P2.2 Inclusão dos impactos previsíveis na saúde pública em outros cenários de risco de desastre (por exemplo, inundações, eventos de calor, escorregamentos)",null,null,null,null,"P2.2",null,"Inclusão dos impactos previsíveis na saúde pública em outros cenários de risco de desastre (por exemplo, inundações, eventos de calor, escorregamentos)"]
[null,"Questão","Comentários"]
[]
[null,"Resposta","Fornecer meios de verificação (explicação e evidência)"]
[null,null,null,null,null,{"$f":"IF(E22=1,TRUE,FALSE)","v":false}]
[null,null,null,null,null,{"$f":"IF(E22=2,TRUE,FALSE)","v":false}]
[null,null,null,null,null,{"$f":"IF(E22=3,TRUE,FALSE)","v":false}]
[null,null,null,null,null,{"$f":"IF(E22=4,TRUE,FALSE)","v":false}]
[null,null,null,null,null,{"$f":"IF(E22=5,TRUE,FALSE)","v":false}]
[null,null,null,null,null,{"$f":"IF(E22=6,TRUE,FALSE)","v":false}]
[null,"Ações para alcançar a resiliência máxima","Instituição/Setor (ou sub-setor) responsável","Prazo"]
[]
[]
[null,"P2.3 Inclusão no planejamento de desastres de condições crônicas de saúde pré-existentes, incluindo doenças não transmissíveis",null,null,null,null,"P2.3",null,"Inclusão no planejamento de desastres de condições crônicas de saúde pré-existentes, incluindo doenças não transmissíveis"]
[null,"Questão","Comentários"]
[]
[null,"Resposta","Fornecer meios de verificação (explicação e evidência)"]
[null,null,null,null,null,{"$f":"IF(E35=1,TRUE,FALSE)","v":false}]
[null,null,null,null,null,{"$f":"IF(E35=2,TRUE,FALSE)","v":false}]
[null,null,null,null,null,{"$f":"IF(E35=3,TRUE,FALSE)","v":false}]
[null,null,null,null,null,{"$f":"IF(E35=4,TRUE,FALSE)","v":false}]
[null,null,null,null,null,{"$f":"IF(E35=5,TRUE,FALSE)","v":false}]
[null,null,null,null,null,{"$f":"IF(E35=6,TRUE,FALSE)","v":false}]
[null,"Ações para alcançar a resiliência máxima","Instituição/Setor (ou sub-setor) responsável","Prazo"]

{"sheet":"E03","index":5,"n_rows":15,"n_cols":9,"rows_kept":15,"cut":false,"hidden":false,"merged":[[4,1,4,3],[5,2,5,3],[6,2,6,3],[7,2,7,3],[8,2,13,3]]}
[]
[]
[null,"P3 Integração de saúde pública e finanças (Princípio 3)",null,null,null,null,"P3",null,"Integração de saúde pública e finanças (Princípio 3)"]
[]
[null,"P3.1 Financiamento para aspectos de resiliência de saúde pública",null,null,null,null,"P3.1",null,"Financiamento para aspectos de resiliência de saúde pública"]
[null,"Questão","Comentários"]
[]
[null,"Resposta","Fornecer meios de verificação (explicação e evidência)"]
[null,null,null,null,null,{"$f":"IF(E9=1,TRUE,FALSE)","v":false}]
[null,null,null,null,null,{"$f":"IF(E9=2,TRUE,FALSE)","v":false}]
[null,null,null,null,null,{"$f":"IF(E9=3,TRUE,FALSE)","v":false}]
[null,null,null,null,null,{"$f":"IF(E9=4,TRUE,FALSE)","v":false}]
[null,null,null,null,null,{"$f":"IF(E9=5,TRUE,FALSE)","v":false}]
[null,null,null,null,null,{"$f":"IF(E9=6,TRUE,FALSE)","v":false}]
[null,"Ações para alcançar a resiliência máxima","Instituição/Setor (ou sub-setor) responsável","Prazo"]

{"sheet":"E04","index":6,"n_rows":15,"n_cols":9,"rows_kept":15,"cut":false,"hidden":false,"merged":[[4,1,4,3],[5,2,5,3],[6,2,6,3],[7,2,7,3],[8,2,13,3]]}
[]
[]
[null,"P4 Integração da necessidade de saúde pública ao código do uso do solo/ construção (Princípio 4)",null,null,null,null,"P4",null,"Integração da necessidade de saúde pública ao código do uso do solo/ construção (Princípio 4)"]
[]
[null,"P4.1 Conformidade das principais unidades de saúde com o zoneamento de terras resilientes e códigos de construção",null,null,null,null,"P4.1",null,"Conformidade das principais unidades de saúde com o zoneamento de terras resilientes e códigos de construção"]
[null,"Questão","Comentários"]
[]
[null,"Resposta","Fornecer meios de verificação (explicação e evidência)"]
[null,null,null,null,null,{"$f":"IF(E9=1,TRUE,FALSE)","v":false}]
[null,null,null,null,null,{"$f":"IF(E9=2,TRUE,FALSE)","v":false}]
[null,null,null,null,null,{"$f":"IF(E9=3,TRUE,FALSE)","v":false}]
[null,null,null,null,null,{"$f":"IF(E9=4,TRUE,FALSE)","v":false}]
[null,null,null,null,null,{"$f":"IF(E9=5,TRUE,FALSE)","v":false}]
[null,null,null,null,null,{"$f":"IF(E9=6,TRUE,FALSE)","v":false}]
[null,"Ações para alcançar a resiliência máxima","Instituição/Setor (ou sub-setor) responsável","Prazo"]

{"sheet":"E05","index":7,"n_rows":15,"n_cols":9,"rows_kept":15,"cut":false,"hidden":false,"merged":[[4,1,4,3],[5,2,5,3],[6,2,6,3],[7,2,7,3],[8,2,13,3]]}
[]
[]
[null,"P5 Gestão dos serviços de ecossistemas que afetam a saúde pública (Princípio 5)",null,null,null,null,"P5",null,"Gestão de serviços de ecossistemas que afetam a saúde pública (Princípio 5)"]
[]
[null,"P5.1 Preservação e gestão dos serviços de ecossistemas que fornecem benefícios de saúde pública",null,null,null,null,"P5.1",null,"Preservação e gestão de serviços de ecossistemas que fornecem benefícios de saúde pública"]
[null,"Questão","Comentários"]
[]
[null,"Resposta","Fornecer meios de verificação (explicação e evidência)"]
[null,null,null,null,null,{"$f":"IF(E9=1,TRUE,FALSE)","v":false}]
[null,null,null,null,null,{"$f":"IF(E9=2,TRUE,FALSE)","v":false}]
[null,null,null,null,null,{"$f":"IF(E9=3,TRUE,FALSE)","v":false}]
[null,null,null,null,null,{"$f":"IF(E9=4,TRUE,FALSE)","v":false}]
[null,null,null,null,null,{"$f":"IF(E9=5,TRUE,FALSE)","v":false}]
[null,null,null,null,null,{"$f":"IF(E9=6,TRUE,FALSE)","v":false}]
[null,"Ações para alcançar a resiliência máxima","Instituição/Setor (ou sub-setor) responsável","Prazo"]

{"sheet":"E06","index":8,"n_rows":54,"n_cols":9,"rows_kept":54,"cut":false,"hidden":false,"merged":[[4,1,4,3],[5,2,5,3],[6,2,6,3],[7,2,7,3],[17,1,17,3],[8,2,13,3],[18,2,18,3],[47,2,52,3],[34,2,39,3],[21,2,26,3],[19,2,19,3],[20,2,20,3],[30,1,30,3],[31,2,31,3],[32,2,32,3],[33,2,33,3],[43,1,43,3],[44,2,44,3],[45,2,45,3],[46,2,46,3]]}
[]
[]
[null,"P6 Integração de saúde pública e capacidade institucional (Princípio 6)",null,null,null,null,"P6",null,"Integração de saúde pública e capacidade institucional (Princípio 6)"]
[]
[null,"P6.1 Disponibilidade da força de trabalho de saúde pública com competências e habilidades relevantes para resiliência a desastres",null,null,null,null,"P6.1",null,"Disponibilidade da força de trabalho de saúde pública com competências e habilidades relevantes para resiliência a desastres"]
[null,"Questão","Comentários"]
[]
[null,"Resposta","Fornecer meios de verificação (explicação e evidência)"]
[null,null,null,null,null,{"$f":"IF(E9=1,TRUE,FALSE)","v":false}]
[null,null,null,null,null,{"$f":"IF(E9=2,TRUE,FALSE)","v":false}]
[null,null,null,null,null,{"$f":"IF(E9=3,TRUE,FALSE)","v":false}]
[null,null,null,null,null,{"$f":"IF(E9=4,TRUE,FALSE)","v":false}]
[null,null,null,null,null,{"$f":"IF(E9=5,TRUE,FALSE)","v":false}]
[null,null,null,null,null,{"$f":"IF(E9=6,TRUE,FALSE)","v":false}]
[null,"Ações para alcançar a resiliência máxima","Instituição/Setor (ou sub-setor) responsável","Prazo"]
[]
[]
[null,"P6.2 Compartilhamento de dados do sistema público de saúde com outras partes interessadas",null,null,null,null,"P6.2",null,"Compartilhamento de dados do sistema público de saúde com outras partes interessadas"]
[null,"Questão","Comentários"]
[]
[null,"Resposta","Fornecer meios de verificação (explicação e evidência)"]
[null,null,null,null,null,{"$f":"IF(E22=1,TRUE,FALSE)","v":false}]
[null,null,null,null,null,{"$f":"IF(E22=2,TRUE,FALSE)","v":false}]
[null,null,null,null,null,{"$f":"IF(E22=3,TRUE,FALSE)","v":false}]
[null,null,null,null,null,{"$f":"IF(E22=4,TRUE,FALSE)","v":false}]
[null,null,null,null,null,{"$f":"IF(E22=5,TRUE,FALSE)","v":false}]
[null,null,null,null,null,{"$f":"IF(E22=6,TRUE,FALSE)","v":false}]
[null,"Ações para alcançar a resiliência máxima","Instituição/Setor (ou sub-setor) responsável","Prazo"]
[]
[]
[null,"P6.2.1 Compartilhamento de outros dados com as partes interessadas do sistema de saúde pública",null,null,null,null,"P6.2.1",null,"Compartilhamento de outros dados com as partes interessadas do sistema de saúde pública"]
[null,"Questão","Comentários"]
[]
[null,"Resposta","Fornecer meios de verificação (explicação e evidência)"]
[null,null,null,null,null,{"$f":"IF(E35=1,TRUE,FALSE)","v":false}]
[null,null,null,null,null,{"$f":"IF(E35=2,TRUE,FALSE)","v":false}]
[null,null,null,null,null,{"$f":"IF(E35=3,TRUE,FALSE)","v":false}]
[null,null,null,null,null,{"$f":"IF(E35=4,TRUE,FALSE)","v":false}]
[null,null,null,null,null,{"$f":"IF(E35=5,TRUE,FALSE)","v":false}]
[null,null,null,null,null,{"$f":"IF(E35=6,TRUE,FALSE)","v":false}]
[null,"Ações para alcançar a resiliência máxima","Instituição/Setor (ou sub-setor) responsável","Prazo"]
[]
[]
[null,"P6.2.2 Proteção e acesso a registros de saúde individuais",null,null,null,null,"P6.2.2",null,"Proteção e acesso a registros de saúde individuais"]
[null,"Questão","Comentários"]
[]
[null,"Resposta","Fornecer meios de verificação (explicação e evidência)"]
[null,null,null,null,null,{"$f":"IF(E48=1,TRUE,FALSE)","v":false}]
[null,null,null,null,null,{"$f":"IF(E48=2,TRUE,FALSE)","v":false}]
[null,null,null,null,null,{"$f":"IF(E48=3,TRUE,FALSE)","v":false}]
[null,null,null,null,null,{"$f":"IF(E48=4,TRUE,FALSE)","v":false}]
[null,null,null,null,null,{"$f":"IF(E48=5,TRUE,FALSE)","v":false}]
[null,null,null,null,null,{"$f":"IF(E48=6,TRUE,FALSE)","v":false}]
[null,"Ações para alcançar a resiliência máxima","Instituição/Setor (ou sub-setor) responsável","Prazo"]

{"sheet":"E07","index":9,"n_rows":43,"n_cols":9,"rows_kept":43,"cut":false,"hidden":false,"merged":[[4,1,4,3],[5,2,5,3],[6,2,6,3],[7,2,7,3],[17,1,17,3],[18,2,18,3],[8,2,13,3],[21,2,26,3],[34,2,39,3],[19,2,19,3],[20,2,20,3],[30,1,30,3],[31,2,31,3],[32,2,32,3],[33,2,33,3]]}
[]
[]
[null,"P7 Integração de saúde pública e capacidade social (Princípio 7)",null,null,null,null,"P7",null,"Integração de saúde pública e capacidade social (Princípio 7)"]
[null,null,null,null,null,null,""]
[null,"P7.1 Eficácia do sistema de saúde pública no envolvimento da comunidade no contexto da gestão do risco de desastres",null,null,null,null,"P7.1",null,"Eficácia do sistema de saúde pública no envolvimento da comunidade no contexto da gestão do risco de desastres"]
[null,"Questão","Comentários",null,null,null,""]
[null,null,null,null,null,null,""]
[null,"Resposta","Fornecer meios de verificação (explicação e evidência)",null,null,null,""]
[null,null,null,null,null,{"$f":"IF(E9=1,TRUE,FALSE)","v":false},""]
[null,null,null,null,null,{"$f":"IF(E9=2,TRUE,FALSE)","v":false},""]
[null,null,null,null,null,{"$f":"IF(E9=3,TRUE,FALSE)","v":false},""]
[null,null,null,null,null,{"$f":"IF(E9=4,TRUE,FALSE)","v":false},""]
[null,null,null,null,null,{"$f":"IF(E9=5,TRUE,FALSE)","v":false},""]
[null,null,null,null,null,{"$f":"IF(E9=6,TRUE,FALSE)","v":false},""]
[null,"Ações para alcançar a resiliência máxima","Instituição/Setor (ou sub-setor) responsável","Prazo",null,null,""]
[null,null,null,null,null,null,""]
[null,null,null,null,null,null,""]
[null,"P7.1.2 Acesso da comunidade e confiança nas informações de saúde pública",null,null,null,null,"P7.1.2",null,"Acesso da comunidade e confiança nas informações de saúde pública"]
[null,"Questão","Comentários",null,null,null,""]
[null,null,null,null,null,null,""]
[null,"Resposta","Fornecer meios de verificação (explicação e evidência)",null,null,null,""]
[null,null,null,null,null,{"$f":"IF(E22=1,TRUE,FALSE)","v":false},""]
[null,null,null,null,null,{"$f":"IF(E22=2,TRUE,FALSE)","v":false},""]
[null,null,null,null,null,{"$f":"IF(E22=3,TRUE,FALSE)","v":false},""]
[null,null,null,null,null,{"$f":"IF(E22=4,TRUE,FALSE)","v":false},""]
[null,null,null,null,null,{"$f":"IF(E22=5,TRUE,FALSE)","v":false},""]
[null,null,null,null,null,{"$f":"IF(E22=6,TRUE,FALSE)","v":false},""]
[null,"Ações para alcançar a resiliência máxima","Instituição/Setor (ou sub-setor) responsável","Prazo",null,null,""]
[null,null,null,null,null,null,""]
[null,null,null,null,null,null,""]
[null,"P7.2 Capacidade da comunidade de \"retornar à normalidade\" - saúde mental",null,null,null,null,"P7.2",null,"Capacidade da comunidade de \"retornar à normalidade\" - saúde mental"]
[null,"Questão","Comentários",null,null,null,""]
[null,null,null,null,null,null,""]
[null,"Resposta","Fornecer meios de verificação (explicação e evidência)",null,null,null,""]
[null,null,null,null,null,{"$f":"IF(E35=1,TRUE,FALSE)","v":false},""]
[null,null,null,null,null,{"$f":"IF(E35=2,TRUE,FALSE)","v":false},""]
[null,null,null,null,null,{"$f":"IF(E35=3,TRUE,FALSE)","v":false},""]
[null,null,null,null,null,{"$f":"IF(E35=4,TRUE,FALSE)","v":false},""]
[null,null,null,null,null,{"$f":"IF(E35=5,TRUE,FALSE)","v":false},""]
[null,null,null,null,null,{"$f":"IF(E35=6,TRUE,FALSE)","v":false},""]
[null,"Ações para alcançar a resiliência máxima","Instituição/Setor (ou sub-setor) responsável","Prazo",null,null,""]
[null,null,null,null,null,null,""]
[null,null,null,null,null,null,""]

{"sheet":"E08","index":10,"n_rows":43,"n_cols":9,"rows_kept":43,"cut":false,"hidden":false,"merged":[[34,2,39,3],[21,2,26,3],[8,2,13,3],[33,2,33,3],[4,1,4,3],[5,2,5,3],[6,2,6,3],[7,2,7,3],[17,1,17,3],[18,2,18,3],[19,2,19,3],[20,2,20,3],[30,1,30,3],[31,2,31,3],[32,2,32,3]]}
[]
[]
[null,"P8 Integração de saúde pública e resiliência de infraestrutura (Princípio 8)",null,null,null,null,"P8",null,"Integração de saúde pública e resiliência de infraestrutura (Princípio 8)"]
[null,null,null,null,null,null,""]
[null,"P8.1 Fortalecimento da segurança estrutural e não estrutural e funcionalidade dos itens de infraestrutura de saúde pública não considerados no Princípio 8",null,null,null,null,"P8.1",null,"Fortalecimento da segurança estrutural e não estrutural e funcionalidade dos itens de infraestrutura de saúde pública não considerados no Princípio 8"]
[null,"Questão","Comentários",null,null,null,""]
[null,null,null,null,null,null,""]
[null,"Resposta","Fornecer meios de verificação (explicação e evidência)",null,null,null,""]
[null,null,null,null,null,{"$f":"IF(E9=1,TRUE,FALSE)","v":false},""]
[null,null,null,null,null,{"$f":"IF(E9=2,TRUE,FALSE)","v":false},""]
[null,null,null,null,null,{"$f":"IF(E9=3,TRUE,FALSE)","v":false},""]
[null,null,null,null,null,{"$f":"IF(E9=4,TRUE,FALSE)","v":false},""]
[null,null,null,null,null,{"$f":"IF(E9=5,TRUE,FALSE)","v":false},""]
[null,null,null,null,null,{"$f":"IF(E9=6,TRUE,FALSE)","v":false},""]
[null,"Ações para alcançar a resiliência máxima","Instituição/Setor (ou sub-setor) responsável","Prazo",null,null,""]
[null,null,null,null,null,null,""]
[null,null,null,null,null,null,""]
[null,"P8.2 Capacidade da infraestrutura de saúde pública, em caso de surto (quando não considerada no Princípio 8)",null,null,null,null,"P8.2",null,"Capacidade da infraestrutura de saúde pública, em caso de surto (quando não considerada no Princípio 8)"]
[null,"Questão","Comentários",null,null,null,""]
[null,null,null,null,null,null,""]
[null,"Resposta","Fornecer meios de verificação (explicação e evidência)",null,null,null,""]
[null,null,null,null,null,{"$f":"IF(E22=1,TRUE,FALSE)","v":false},""]
[null,null,null,null,null,{"$f":"IF(E22=2,TRUE,FALSE)","v":false},""]
[null,null,null,null,null,{"$f":"IF(E22=3,TRUE,FALSE)","v":false},""]
[null,null,null,null,null,{"$f":"IF(E22=4,TRUE,FALSE)","v":false},""]
[null,null,null,null,null,{"$f":"IF(E22=5,TRUE,FALSE)","v":false},""]
[null,null,null,null,null,{"$f":"IF(E22=6,TRUE,FALSE)","v":false},""]
[null,"Ações para alcançar a resiliência máxima","Instituição/Setor (ou sub-setor) responsável","Prazo",null,null,""]
[null,null,null,null,null,null,""]
[null,null,null,null,null,null,""]
[null,"P8.3 Continuidade de cuidados para aqueles que já estão doentes, quando não considerados no Princípio 8",null,null,null,null,"P8.3",null,"Continuidade de cuidados para aqueles que já estão doentes, quando não considerados no Princípio 8"]
[null,"Questão","Comentários",null,null,null,""]
[null,null,null,null,null,null,""]
[null,"Resposta","Fornecer meios de verificação (explicação e evidência)",null,null,null,""]
[null,null,null,null,null,{"$f":"IF(E35=1,TRUE,FALSE)","v":false},""]
[null,null,null,null,null,{"$f":"IF(E35=2,TRUE,FALSE)","v":false},""]
[null,null,null,null,null,{"$f":"IF(E35=3,TRUE,FALSE)","v":false},""]
[null,null,null,null,null,{"$f":"IF(E35=4,TRUE,FALSE)","v":false},""]
[null,null,null,null,null,{"$f":"IF(E35=5,TRUE,FALSE)","v":false},""]
[null,null,null,null,null,{"$f":"IF(E35=6,TRUE,FALSE)","v":false},""]
[null,"Ações para alcançar a resiliência máxima","Instituição/Setor (ou sub-setor) responsável","Prazo",null,null,""]
[null,null,null,null,null,null,""]
[null,null,null,null,null,null,""]

{"sheet":"E09","index":11,"n_rows":56,"n_cols":9,"rows_kept":56,"cut":false,"hidden":false,"merged":[[47,2,52,3],[34,2,39,3],[21,2,26,3],[30,1,30,3],[31,2,31,3],[32,2,32,3],[33,2,33,3],[43,1,43,3],[44,2,44,3],[45,2,45,3],[46,2,46,3],[19,2,19,3],[20,2,20,3],[4,1,4,3],[5,2,5,3],[6,2,6,3],[7,2,7,3],[17,1,17,3],[18,2,18,3],[8,2,13,3]]}
[]
[]
[null,"P9 Integração de saúde pública e resposta a desastres (Princípio 9)",null,null,null,null,"P9",null,"Integração de saúde pública e resposta a desastres (Princípio 9)"]
[null,null,null,null,null,null,""]
[null,"P9.1 Sistemas de alerta precoce para emergências relacionadas à saúde",null,null,null,null,"P9.1",null,"Sistemas de alerta precoce para emergências relacionadas à saúde"]
[null,"Questão","Comentários",null,null,null,""]
[null,null,null,null,null,null,""]
[null,"Resposta","Fornecer meios de verificação (explicação e evidência)",null,null,null,""]
[null,null,null,null,null,{"$f":"IF(E9=1,TRUE,FALSE)","v":false},""]
[null,null,null,null,null,{"$f":"IF(E9=2,TRUE,FALSE)","v":false},""]
[null,null,null,null,null,{"$f":"IF(E9=3,TRUE,FALSE)","v":false},""]
[null,null,null,null,null,{"$f":"IF(E9=4,TRUE,FALSE)","v":false},""]
[null,null,null,null,null,{"$f":"IF(E9=5,TRUE,FALSE)","v":false},""]
[null,null,null,null,null,{"$f":"IF(E9=6,TRUE,FALSE)","v":false},""]
[null,"Ações para alcançar a resiliência máxima","Instituição/Setor (ou sub-setor) responsável","Prazo",null,null,""]
[null,null,null,null,null,null,""]
[null,null,null,null,null,null,""]
[null,"P9.2 Integração da saúde pública com gerenciamento de emergência em desastres",null,null,null,null,"P9.2",null,"Integração da saúde pública com gerenciamento de emergência em desastres"]
[null,"Questão","Comentários",null,null,null,""]
[null,null,null,null,null,null,""]
[null,"Resposta","Fornecer meios de verificação (explicação e evidência)",null,null,null,""]
[null,null,null,null,null,{"$f":"IF(E22=1,TRUE,FALSE)","v":false},""]
[null,null,null,null,null,{"$f":"IF(E22=2,TRUE,FALSE)","v":false},""]
[null,null,null,null,null,{"$f":"IF(E22=3,TRUE,FALSE)","v":false},""]
[null,null,null,null,null,{"$f":"IF(E22=4,TRUE,FALSE)","v":false},""]
[null,null,null,null,null,{"$f":"IF(E22=5,TRUE,FALSE)","v":false},""]
[null,null,null,null,null,{"$f":"IF(E22=6,TRUE,FALSE)","v":false},""]
[null,"Ações para alcançar a resiliência máxima","Instituição/Setor (ou sub-setor) responsável","Prazo",null,null,""]
[null,null,null,null,null,null,""]
[null,null,null,null,null,null,""]
[null,"P9.3 Reconhecimento de populações de alto risco ou aqueles que vivem em casa com condições de saúde pré-existentes",null,null,null,null,"P9.3",null,"Reconhecimento de populações de alto risco ou aqueles que vivem em casa com condições de saúde pré-existentes"]
[null,"Questão","Comentários",null,null,null,""]
[null,null,null,null,null,null,""]
[null,"Resposta","Fornecer meios de verificação (explicação e evidência)",null,null,null,""]
[null,null,null,null,null,{"$f":"IF(E35=1,TRUE,FALSE)","v":false},""]
[null,null,null,null,null,{"$f":"IF(E35=2,TRUE,FALSE)","v":false},""]
[null,null,null,null,null,{"$f":"IF(E35=3,TRUE,FALSE)","v":false},""]
[null,null,null,null,null,{"$f":"IF(E35=4,TRUE,FALSE)","v":false},""]
[null,null,null,null,null,{"$f":"IF(E35=5,TRUE,FALSE)","v":false},""]
[null,null,null,null,null,{"$f":"IF(E35=6,TRUE,FALSE)","v":false},""]
[null,"Ações para alcançar a resiliência máxima","Instituição/Setor (ou sub-setor) responsável","Prazo",null,null,""]
[null,null,null,null,null,null,""]
[null,null,null,null,null,null,""]
[null,"P9.4 Capacidade de fornecer suprimentos de saúde pública para pessoas em necessidade",null,null,null,null,"P9.4",null,"Capacidade de fornecer suprimentos de saúde pública para pessoas em necessidade"]
[null,"Questão","Comentários",null,null,null,""]
[null,null,null,null,null,null,""]
[null,"Resposta","Fornecer meios de verificação (explicação e evidência)",null,null,null,""]
[null,null,null,null,null,{"$f":"IF(E48=1,TRUE,FALSE)","v":false},""]
[null,null,null,null,null,{"$f":"IF(E48=2,TRUE,FALSE)","v":false},""]
[null,null,null,null,null,{"$f":"IF(E48=3,TRUE,FALSE)","v":false},""]
[null,null,null,null,null,{"$f":"IF(E48=4,TRUE,FALSE)","v":false},""]
[null,null,null,null,null,{"$f":"IF(E48=5,TRUE,FALSE)","v":false},""]
[null,null,null,null,null,{"$f":"IF(E48=6,TRUE,FALSE)","v":false},""]
[null,"Ações para alcançar a resiliência máxima","Instituição/Setor (ou sub-setor) responsável","Prazo",null,null,""]
[null,null,null,null,null,null,""]
[null,null,null,null,null,null,""]

{"sheet":"E10","index":12,"n_rows":28,"n_cols":9,"rows_kept":28,"cut":false,"hidden":false,"merged":[[4,1,4,3],[5,2,5,3],[6,2,6,3],[7,2,7,3],[17,1,17,3],[21,2,26,3],[8,2,13,3],[19,2,19,3],[20,2,20,3],[18,2,18,3]]}
[]
[]
[null,"P10 Integração de saúde pública e recuperação/ reconstrução melhor (Princípio 10)",null,null,null,null,"P10",null,"Integração de saúde pública e recuperação/ reconstrução melhor (Princípio 10)"]
[]
[null,"P10.1 Mitigação de impactos de longo prazo na saúde pública e bem-estar",null,null,null,null,"P10.1",null,"Mitigação de impactos de longo prazo na saúde pública e bem-estar"]
[null,"Questão","Comentários"]
[]
[null,"Resposta","Fornecer meios de verificação (explicação e evidência)"]
[null,null,null,null,null,{"$f":"IF(E9=1,TRUE,FALSE)","v":false}]
[null,null,null,null,null,{"$f":"IF(E9=2,TRUE,FALSE)","v":false}]
[null,null,null,null,null,{"$f":"IF(E9=3,TRUE,FALSE)","v":false}]
[null,null,null,null,null,{"$f":"IF(E9=4,TRUE,FALSE)","v":false}]
[null,null,null,null,null,{"$f":"IF(E9=5,TRUE,FALSE)","v":false}]
[null,null,null,null,null,{"$f":"IF(E9=6,TRUE,FALSE)","v":false}]
[null,"Ações para alcançar a resiliência máxima","Instituição/Setor (ou sub-setor) responsável","Prazo"]
[]
[]
[null,"P10.2 Aprendendo e melhorando",null,null,null,null,"P10.2",null,"Aprendendo e melhorando"]
[null,"Questão","Comentários"]
[]
[null,"Resposta","Fornecer meios de verificação (explicação e evidência)"]
[null,null,null,null,null,{"$f":"IF(E22=1,TRUE,FALSE)","v":false}]
[null,null,null,null,null,{"$f":"IF(E22=2,TRUE,FALSE)","v":false}]
[null,null,null,null,null,{"$f":"IF(E22=3,TRUE,FALSE)","v":false}]
[null,null,null,null,null,{"$f":"IF(E22=4,TRUE,FALSE)","v":false}]
[null,null,null,null,null,{"$f":"IF(E22=5,TRUE,FALSE)","v":false}]
[null,null,null,null,null,{"$f":"IF(E22=6,TRUE,FALSE)","v":false}]
[null,"Ações para alcançar a resiliência máxima","Instituição/Setor (ou sub-setor) responsável","Prazo"]

{"sheet":"About","index":13,"n_rows":0,"n_cols":0,"rows_kept":0,"cut":false,"hidden":false,"merged":[]}